[Event "4th Cap Verde-ch 2020"]
[Site "Mindelo"]
[Date "2020.10.18"]
[Round "6.3"]
[White "Monteiro, Antonio David Cabral"]
[Black "Neves, Diogo Alexandre"]
[Result "1/2-1/2"]
[ECO "B07"]
[WhiteElo "1766"]
[BlackElo "1573"]
[Annotator "NA RC"]
[PlyCount "125"]
[EventDate "2020.10.08"]
[EventType "swiss"]
[EventCountry "KAP"]
[SourceTitle "playchess.com"]
[Source "ChessBase"]
[SourceQuality "1"]
[TimeControl "40/5400+30:1800+30"]

1. d4 {[%emt 0:03:48]} Nf6 {[%emt 0:00:00]} 2. Bf4 {[%emt 0:01:00]} g6 {[%emt 0:00:02]} 3. Nc3 {[%emt 0:01:18]} Bg7 {[%emt 0:00:47]} 4. e4 {[%emt 0:00:45]} d6 {[%emt 0:03:20]} 5. Qd2 {[%emt 0:01:25]} O-O {[%emt 0:01:33]} 6. O-O-O {[%emt 0:01:49]} a6 {[%emt 0:00:53]} 7. Bd3 {[%emt 0:02:34]} b5 {[%emt 0:06:42]} 8. Bh6 {[%emt 0:01:16]} b4 {[%emt 0:04:56]} 9. Nce2 {[%emt 0:00:40]} a5 {[%emt 0:01:03]} 10. h4 {[%emt 0:00:44]} Ng4 {[%emt 0:00:52]} 11. Bxg7 {[%emt 0:01:59]} Kxg7 {[%emt 0:00:14]} 12. Nh3 {[%emt 0:04:33]} e5 {[%emt 0:04:15]} 13. h5 {[%emt 0:03:36]} exd4 {[%emt 0:02:55]} 14. hxg6 {[%emt 0:01:20]} fxg6 {[%emt 0:00:38]} 15. Nxd4 {[%emt 0:07:42]} Qf6 {[%emt 0:04:54]} 16. Ne2 {[%emt 0:05:06]} Nc6 {[%emt 0:03:17]} 17. f3 {[%emt 0:01:43]} Nge5 {[%emt 0:00:19]} 18. Nf2 {[%emt 0:03:03]} h5 {[%emt 0:02:24]} 19. f4 {[%emt 0:08:09]} Ng4 {[%emt 0:04:44]} 20. Nh3 {[%emt 0:01:26]} a4 {[%emt 0:02:50]} 21. Kb1 {[%emt 0:03:00]} a3 {[%emt 0:01:59]} 22. c3 {[%emt 0:02:07]} bxc3 {[%emt 0:02:18]} 23. Nxc3 {[%emt 0:09:50]} axb2 {[%emt 0:00:29]} 24. Nd5 {[%emt 0:03:25]} Qd4 {[%emt 0:02:21]} 25. Bc2 {[%emt 0:04:49]} Qa7 {[%emt 0:09:36]} 26. Qc3+ {[%emt 0:05:41]} Kh6 {[%emt 0:01:07]} 27. Bb3 {[%emt 0:06:09]} Bd7 {[%emt 0:04:57]} 28. Rd2 {[%emt 0:02:18]} Na5 {[%emt 0:04:50]} 29. Rxb2 {[%emt 0:09:53]} Nxb3 {[%emt 0:00:47]} 30. Rxb3 {[%emt 0:02:07]} Qxa2+ {[%emt 0:00:06]} 31. Kc1 {[%emt 0:00:00]} Qa1+ {[%emt 0:00:30]} 32. Qxa1 {[%emt 0:00:00]} Rxa1+ {[%emt 0:00:19]} 33. Rb1 {[%emt 0:00:00]} Ra2 {[%emt 0:01:35]} 34. Rb2 {[%emt 0:01:08]} Rxb2 {[%emt 0:01:28]} 35. Kxb2 {[%emt 0:00:02]} c6 {[%emt 0:01:08]} 36. Nb4 {[%emt 0:01:10]} Re8 {[%emt 0:03:40]} 37. Ng5 {[%emt 0:00:35]} Kg7 {[%emt 0:01:52]} 38. Ra1 {[%emt 0:00:26]} Nf6 {[%emt 0:03:02]} 39. Ra7 {[%emt 0:00:44]} Kf8 {[%emt 0:02:05]} 40. Rc7 {[%emt 0:00:57]} Rc8 {[%emt 0:05:06]} 41. Rxc8+ {[%emt 0:30:49]} Bxc8 {[%emt 0:30:11]} 42. Nxc6 {[%emt 0:00:12]} Bb7 {[%emt 0:00:12]} 43. Nd4 {[%emt 0:00:00]} Nxe4 {[%emt 0:00:00]} 44. Nxe4 {[%emt 0:00:00]} Bxe4 {[%emt 0:00:00]} 45. g3 {[%emt 0:00:00]} Kf7 {[%emt 0:00:00]} 46. Kc3 {[%emt 0:00:00]} Kf6 {[%emt 0:00:00]} 47. Kd2 {[%emt 0:00:00]} g5 {[%emt 0:00:00]} 48. Ke3 {[%emt 0:00:00]} d5 {[%emt 0:00:00]} 49. fxg5+ {[%emt 0:00:00]} Kxg5 {[%emt 0:00:00]} 50. Kf2 {[%emt 0:00:00]} Kg4 {[%emt 0:00:00]} 51. Ne2 {[%emt 0:00:00]} Bf3 {[%emt 0:00:00]} 52. Nd4 {[%emt 0:00:00]} Bd1 {[%emt 0:00:00]} 53. Nb5 {[%emt 0:00:00]} Kf5 {[%emt 0:00:00]} 54. Ke3 {[%emt 0:00:00]} Kg4 {[%emt 0:00:00]} 55. Kf2 {[%emt 0:00:00]} Be2 {[%emt 0:00:00]} 56. Nd4 {[%emt 0:00:00]} Bc4 {[%emt 0:00:00]} 57. Nf3 {[%emt 0:00:00]} Ba2 {[%emt 0:00:00]} 58. Nd4 {[%emt 0:00:00]} Bb1 {[%emt 0:00:00]} 59. Nf3 {[%emt 0:00:00]} Be4 {[%emt 0:00:00]} 60. Nd4 {[%emt 0:00:00]} h4 {[%emt 0:00:00]} 61. gxh4 {[%emt 0:00:00]} Kxh4 {[%emt 0:00:00]} 62. Ke3 {[%emt 0:00:00]} Kg4 {[%emt 0:00:00]} 63. Nc6 {[%emt 0:00:00]} 1/2-1/2

[Event "4th Cap Verde-ch 2020"]
[Site "Mindelo"]
[Date "2020.10.18"]
[Round "7.2"]
[White "Monteiro, Antonio David Cabral"]
[Black "Rodriguez Guevara, Celia M."]
[Result "1-0"]
[ECO "D58"]
[WhiteElo "1766"]
[BlackElo "1858"]
[Annotator "NA RC"]
[PlyCount "115"]
[EventDate "2020.10.08"]
[EventType "swiss"]
[EventCountry "KAP"]
[SourceTitle "playchess.com"]
[Source "ChessBase"]
[SourceQuality "1"]
[TimeControl "40/5400+30:1800+30"]

{[%evp 10,115,17,12,12,18,18,8,31,32,40,33,23,23,18,7,3,-12,-24,-23,42,0,0,-10,-6,-55,-64,-216,-31,-611,-707,-617,-607,-577,-585,-376,-561,-621,-472,-417,-463,-491,-514,-542,-398,-385,-426,-390,-444,-520,-654,-576,-445,-409,-467,-460,-487,-469,-499,-463,-477,-530,-468,-509,-496,-512,-643,-772,-814,-726,-1031,-1213,-1806,-1271,-1770,-2022,-2339,-4700,-1266,-1376,-6087,-29982,-29979,32767,-12841,-29973,-29980,-7208,-536,-12843,-29961,-29987,7640,5634,5615,29978,29979,29986,29983,29988,29990,29991,29992,29993,29996,29997,29997,12849]} 1. d4 {[%emt 0:06:59]} d5 {[%emt 0:00:00]} 2. c4 {[%emt 0:00:54]} e6 {[%emt 0:00:08]} 3. Nc3 {[%emt 0:00:36]} Nf6 {[%emt 0:00:44]} 4. Bg5 {[%emt 0:00:17]} Be7 {[%emt 0:00:51]} 5. Nf3 {[%emt 0:00:25]} O-O {[%emt 0:02:46]} 6. e3 {[%emt 0:00:25]} Nbd7 {[%emt 0:01:08]} 7. Rc1 {[%emt 0:00:58]} h6 {[%emt 0:02:06]} 8. Bh4 {[%emt 0:00:09]} b6 {[%emt 0:04:31]} 9. cxd5 {[%emt 0:05:03]} exd5 {[%emt 0:05:13]} 10. Bd3 {[%emt 0:01:38]} Bb7 {[%emt 0:04:35]} 11. O-O {[%emt 0:00:41]} Ne4 {[%emt 0:05:00]} 12. Bxe7 {[%emt 0:04:25]} Qxe7 {[%emt 0:01:31]} 13. Bxe4 {[%emt 0:05:51] D58: Queen's Gambit Declined: Tartakower Defence.} dxe4 {[%emt 0:00:18]} 14. Nd2 {[%emt 0:03:32] [#]} Qh4 $146 {[%emt 0:07:06]} ({Predecessor:} 14... c5 $11 15. Qc2 cxd4 16. exd4 e3 17. Nc4 exf2+ 18. Rxf2 Nf6 19. Ne5 Rac8 20. Re2 Qb4 {0-1 (30) Popovic,M (1497)-Radosevic,N (1653) Podgorica 2019}) 15. Ne2 {[%emt 0:04:02]} c5 {[%emt 0:08:07]} 16. Qa4 {[%emt 0:06:33]} Rfd8 {[%emt 0:13:49]} 17. Rfd1 {[%emt 0:03:32]} cxd4 {[%emt 0:06:01]} 18. g3 $2 {[%emt 0:05:02]} (18. Qxd4 $15 Nc5 19. Nf3 Rxd4 20. Nxh4 Rxd1+ 21. Rxd1) 18... Qf6 $2 {[%emt 0:01:35]} (18... Qg4 $19 19. Nxd4 Nc5) 19. Qxd4 $2 {[%emt 0:01:05]} (19. exd4 $11 Nf8 20. Rc7) 19... Ne5 {[%emt 0:02:25]} 20. Nxe4 {[%emt 0:18:45]} Qf3 {[%emt 0:05:13]} 21. Qxd8+ {[%emt 0:09:39]} Rxd8 {[%emt 0:00:08]} 22. Rxd8+ {[%emt 0:00:12] [#]} Kh7 $1 {[%emt 0:00:04]} 23. N2c3 {[%emt 0:04:49]} Ng4 {[%emt 0:04:26]} 24. Rd2 {[%emt 0:07:29]} Bxe4 {[%emt 0:00:14]} 25. Nxe4 {[%emt 0:00:09]} Qxe4 {[%emt 0:00:21]} 26. Rd4 {[%emt 0:00:48]} Qf3 {[%emt 0:00:52]} 27. Rf4 {[%emt 0:01:11]} Qe2 {[%emt 0:00:16]} 28. Rxf7 {[%emt 0:02:02] [#]} Nxe3 $1 {[%emt 0:03:26]} 29. Re7 {[%emt 0:03:35]} Qxb2 {[%emt 0:00:07]} 30. Re1 {[%emt 0:01:29]} Ng4 {[%emt 0:01:56]} 31. R1e2 {[%emt 0:00:26]} Qd4 {[%emt 0:01:19]} 32. R7e4 {[%emt 0:01:07]} Qd1+ {[%emt 0:01:18]} 33. Kg2 {[%emt 0:00:29]} Qd5 {[%emt 0:01:11]} 34. f3 {[%emt 0:00:44]} Nf6 {[%emt 0:00:05]} 35. Re7 {[%emt 0:00:39]} Qc4 {[%emt 0:00:32]} 36. R7e5 {[%emt 0:00:39]} a5 {[%emt 0:00:17]} 37. h4 {[%emt 0:00:34]} a4 {[%emt 0:03:59]} 38. g4 {[%emt 0:00:21]} a3 {[%emt 0:02:13]} 39. Kg3 {[%emt 0:00:21]} b5 {[%emt 0:01:42]} 40. g5 {[%emt 0:00:39]} Nh5+ {[%emt 0:01:11]} 41. Kf2 {[%emt 0:31:00]} Qxh4+ {[%emt 0:30:29] Double Attack} 42. Ke3 {[%emt 0:00:42]} Qf4+ {[%emt 0:02:03]} 43. Kf2 {[%emt 0:00:14]} Qd4+ {[%emt 0:01:32]} 44. R2e3 {[%emt 0:01:06]} hxg5 {[%emt 0:08:14]} 45. Rxb5 {[%emt 0:00:39]} Qh4+ {[%emt 0:00:37]} 46. Kg2 {[%emt 0:00:00]} Qg3+ {[%emt 0:00:00]} 47. Kf1 {[%emt 0:01:35]} Nf4 {[%emt 0:00:00]} 48. Rbb3 {[%emt 0:00:00]} Qg2+ {[%emt 0:00:00]} 49. Ke1 {[%emt 0:02:35]} Qxa2 {[%emt 0:00:00]} 50. Kf1 {[%emt 0:03:05]} Qb1+ $4 {[%emt 0:00:00]} (50... Qg2+ 51. Ke1 a2 52. Ra3 Qg1+ 53. Kd2 Qf2+ 54. Kd1 {[#]} Qxe3 $1 {[%mdl 576] Promotion} 55. Rxe3 a1=Q+ 56. Kc2 Qa2+ 57. Kc1 Qc4+ 58. Kb1 Qf1+ 59. Kc2 Qf2+ {[%mdl 64] Double Attack} 60. Kc3 Qxe3+ 61. Kb4 Qc1 62. Kb5 Nd5 63. f4 gxf4 64. Ka4 Qb2 65. Ka5 Qb6+ 66. Ka4 Qb4#) 51. Rxb1 {[%emt 0:00:00]} Nd5 {[%emt 0:00:00]} 52. Rxa3 {[%emt 0:04:05]} Kh6 {[%emt 0:00:00]} 53. Kf2 {[%emt 0:00:00]} Kg6 {[%emt 0:00:00]} 54. Ra6+ {[%emt 0:00:00]} Kf7 {[%emt 0:00:00]} 55. Rb7+ {[%emt 0:00:00]} Kg8 {[%emt 0:00:00] [#]} 56. Rg6 $1 {[%emt 0:00:00]} Nf4 {[%emt 0:00:00]} 57. Rgxg7+ {[%emt 0:00:00]} Kh8 {[%emt 0:00:00]} 58. Rgc7 $18 {[%emt 0:00:00]} 1-0

[Event "4th Cap Verde-ch 2020"]
[Site "Mindelo"]
[Date "2020.10.18"]
[Round "7.3"]
[White "Miranda, Iura"]
[Black "Pereira, Eder Marcio"]
[Result "0-1"]
[ECO "A46"]
[WhiteElo "1388"]
[BlackElo "1788"]
[Annotator "NA RC"]
[PlyCount "34"]
[EventDate "2020.10.08"]
[EventType "swiss"]
[EventCountry "KAP"]
[SourceTitle "playchess.com"]
[Source "ChessBase"]
[SourceQuality "1"]
[TimeControl "40/5400+30:1800+30"]

1. d4 {[%emt 0:03:40]} c6 {[%emt 0:02:49]} 2. Nf3 {[%emt 0:00:43]} d6 {[%emt 0:04:25]} 3. c3 {[%emt 0:01:36]} Nf6 {[%emt 0:04:16]} 4. Bf4 {[%emt 0:01:05]} Qb6 {[%emt 0:00:37]} 5. Qb3 {[%emt 0:00:18]} Bg4 {[%emt 0:02:23]} 6. Nbd2 {[%emt 0:00:27]} Bf5 {[%emt 0:02:56]} 7. h3 {[%emt 0:04:28]} h6 {[%emt 0:00:17]} 8. e3 {[%emt 0:01:22]} g5 {[%emt 0:08:25]} 9. g4 {[%emt 0:08:24]} gxf4 {[%emt 0:08:19]} 10. gxf5 {[%emt 0:01:29]} fxe3 {[%emt 0:00:17]} 11. fxe3 {[%emt 0:00:27]} Rg8 {[%emt 0:04:27]} 12. O-O-O {[%emt 0:02:59]} Qxb3 {[%emt 0:10:13]} 13. Nxb3 {[%emt 0:00:14]} Ne4 {[%emt 0:04:04]} 14. Re1 {[%emt 0:00:36]} Nd7 {[%emt 0:01:09]} 15. Nbd2 {[%emt 0:00:23]} Ndf6 {[%emt 0:00:27]} 16. Rg1 {[%emt 0:04:58]} Nxd2 {[%emt 0:08:17]} 17. Rxg8 {[%emt 0:01:33]} Nxf3 {[%emt 0:00:30]} 0-1

[Event "4th Cap Verde-ch 2020"]
[Site "Mindelo"]
[Date "2020.10.18"]
[Round "7.4"]
[White "Fortes, Aires"]
[Black "Fernandes, Luis De Pina"]
[Result "0-1"]
[ECO "B25"]
[WhiteElo "1504"]
[BlackElo "1606"]
[Annotator "NA RC"]
[PlyCount "125"]
[EventDate "2020.10.08"]
[EventType "swiss"]
[EventCountry "KAP"]
[SourceTitle "playchess.com"]
[Source "ChessBase"]
[SourceQuality "1"]
[TimeControl "40/5400+30:1800+30"]

1. e4 {[%emt 0:00:00]} c5 {[%emt 0:04:26]} 2. Nc3 {[%emt 0:00:00]} Nc6 {[%emt 0:00:55]} 3. g3 {[%emt 0:00:10]} d6 {[%emt 0:01:58]} 4. Bg2 {[%emt 0:00:12]} g6 {[%emt 0:00:19]} 5. Nge2 {[%emt 0:00:54]} Bg7 {[%emt 0:00:09]} 6. O-O {[%emt 1:31:44]} Nf6 {[%emt 1:25:13]} 7. d3 {[%emt 0:00:00]} O-O {[%emt 0:00:00]} 8. f4 {[%emt 0:00:00]} Bg4 {[%emt 0:00:00]} 9. h3 {[%emt 0:00:00]} Bxe2 {[%emt 0:00:00]} 10. Nxe2 {[%emt 0:00:00]} e6 {[%emt 0:00:00]} 11. Be3 {[%emt 0:00:00]} Nd7 {[%emt 0:00:00]} 12. Rb1 {[%emt 0:00:00]} f5 {[%emt 0:00:00]} 13. a3 {[%emt 0:00:00]} Qc7 {[%emt 0:00:00]} 14. Qd2 {[%emt 0:00:00]} Rad8 {[%emt 0:00:00]} 15. b4 {[%emt 0:00:00]} b6 {[%emt 0:00:00]} 16. c3 {[%emt 0:00:00]} Nf6 {[%emt 0:00:00]} 17. Qa2 {[%emt 0:00:00]} Rde8 {[%emt 0:00:00]} 18. bxc5 {[%emt 0:00:00]} bxc5 {[%emt 0:00:00]} 19. e5 {[%emt 0:00:00]} Nd5 {[%emt 0:00:00]} 20. Bxd5 {[%emt 0:00:00]} exd5 {[%emt 0:00:00]} 21. Qxd5+ {[%emt 0:00:00]} Kh8 {[%emt 0:00:00]} 22. exd6 {[%emt 0:00:00]} Qd7 {[%emt 0:00:00]} 23. Kf2 {[%emt 0:00:00]} Re6 {[%emt 0:00:00]} 24. Bxc5 {[%emt 0:00:00]} Rfe8 {[%emt 0:00:00]} 25. Rb2 {[%emt 0:00:00]} Bf8 {[%emt 0:00:00]} 26. Nd4 {[%emt 0:00:00]} Nxd4 {[%emt 0:00:00]} 27. Bxd4+ {[%emt 0:00:00]} Bg7 {[%emt 0:00:00]} 28. Rb7 {[%emt 0:00:00]} Qxd6 {[%emt 0:00:00]} 29. Qxd6 {[%emt 0:00:00]} Rxd6 {[%emt 0:00:00]} 30. Bxg7+ {[%emt 0:00:00]} Kg8 {[%emt 0:00:00]} 31. Bd4 {[%emt 0:00:00]} Rde6 {[%emt 0:00:00]} 32. Be5 {[%emt 0:00:00]} Ra6 {[%emt 0:00:00]} 33. Rg7+ {[%emt 0:00:00]} Kf8 {[%emt 0:00:00]} 34. Rxh7 {[%emt 0:00:00]} Ree6 {[%emt 0:00:00]} 35. Rb1 {[%emt 0:00:00]} Rab6 {[%emt 0:00:00]} 36. Rxb6 {[%emt 0:00:00]} Rxb6 {[%emt 0:00:00]} 37. Rxa7 {[%emt 0:00:00]} Rb2+ {[%emt 0:00:00]} 38. Ke3 {[%emt 0:00:00]} Rg2 {[%emt 0:00:00]} 39. Kf3 {[%emt 0:00:00]} Rd2 {[%emt 0:00:00]} 40. Ke3 {[%emt 0:00:00]} Rg2 {[%emt 0:00:00]} 41. Kd4 {[%emt 0:09:08]} Rxg3 {[%emt 0:14:27]} 42. a4 {[%emt 0:00:21]} Rxh3 {[%emt 0:00:17]} 43. a5 {[%emt 0:00:55]} Rh4 {[%emt 0:00:01]} 44. Kd5 {[%emt 0:38:36]} g5 {[%emt 0:34:15]} 45. fxg5 {[%emt 0:00:00]} f4 {[%emt 0:00:00]} 46. g6 {[%emt 0:00:00]} f3 {[%emt 0:00:00]} 47. Rf7+ {[%emt 0:00:00]} Kg8 {[%emt 0:00:00]} 48. g7 {[%emt 0:00:00]} Kxf7 {[%emt 0:00:00]} 49. Bd4 {[%emt 0:02:30]} Rxd4+ {[%emt 0:02:30]} 50. cxd4 {[%emt 0:00:30]} f2 51. Kc6 {[%emt 0:00:30]} f1=Q {[%emt 0:01:00]} 52. a6 {[%emt 0:00:30]} Qf6+ {[%emt 0:00:30]} 53. Kb7 {[%emt 0:00:30]} Qe7+ {[%emt 0:00:30]} 54. Kb8 {[%emt 0:00:00]} Qd8+ {[%emt 0:00:00]} 55. Kb7 {[%emt 0:00:00]} Qd7+ {[%emt 0:00:00]} 56. Kb8 {[%emt 0:00:00]} Qb5+ {[%emt 0:00:00]} 57. Ka7 {[%emt 0:00:00]} Kxg7 {[%emt 0:00:00]} 58. d5 {[%emt 0:02:30]} Kf7 {[%emt 0:02:30]} 59. d4 {[%emt 0:00:30]} Ke7 {[%emt 0:00:30]} 60. d6+ {[%emt 0:00:30]} Kd7 {[%emt 0:00:30]} 61. d5 {[%emt 0:00:30]} Kc8 {[%emt 0:00:30]} 62. d7+ {[%emt 0:00:00]} Kxd7 {[%emt 0:00:00]} 63. d6 {[%emt 0:01:00]} 0-1